[Event "EYCC Girls U16 2021"]
[Site "Tornelo"]
[Date "2021.10.15"]
[Round "4.3"]
[White "Sulyok, Eszter"]
[Black "Kanyamarala, Trisha"]
[Result "0-1"]
[ECO "A08"]
[WhiteElo "1913"]
[BlackElo "2082"]
[Annotator "ChessBase"]
[PlyCount "124"]
[EventDate "2021.10.15"]
[EventType "swiss"]
[EventCountry "NET"]
[SourceTitle "playchess.com"]
[Source "ChessBase"]
[SourceQuality "1"]
[TimeControl "5400+30"]

1. Nf3 {[%emt 0:00:30]} d5 {[%emt 0:00:47]} 2. g3 {[%emt 0:00:06]} Nf6 {[%emt 0:00:15]} 3. Bg2 {[%emt 0:00:08]} e6 {[%emt 0:00:16]} 4. O-O {[%emt 0:00:11]} c5 {[%emt 0:00:26]} 5. d3 {[%emt 0:01:00]} Nc6 {[%emt 0:01:51]} 6. Nbd2 {[%emt 0:00:33]} Bd6 {[%emt 0:02:24]} 7. e4 {[%emt 0:03:36]} O-O {[%emt 0:01:29]} 8. Re1 {[%emt 0:02:13]} Qc7 {[%emt 0:02:02]} 9. Qe2 {[%emt 0:02:09]} Nd7 {[%emt 0:04:21]} 10. c3 {[%emt 0:03:23]} Rb8 {[%emt 0:03:18]} 11. Nh4 {[%emt 0:04:41]} Nf6 {[%emt 0:05:10]} 12. f4 {[%emt 0:01:13]} Be7 {[%emt 0:02:00]} 13. Bf3 {[%emt 0:15:14]} b5 {[%emt 0:03:01]} 14. Ng2 {[%emt 0:01:01]} b4 {[%emt 0:05:53]} 15. Nf1 {[%emt 0:10:09]} Ba6 {[%emt 0:04:26]} 16. Qc2 {[%emt 0:07:25]} Rfd8 {[%emt 0:05:13]} 17. e5 {[%emt 0:01:14]} Nd7 {[%emt 0:00:59]} 18. Be3 {[%emt 0:02:54]} bxc3 {[%emt 0:04:36]} 19. bxc3 {[%emt 0:00:05]} d4 {[%emt 0:02:31]} 20. cxd4 {[%emt 0:01:28]} Nb4 {[%emt 0:00:53]} 21. Qc3 {[%emt 0:01:51]} Nxd3 {[%emt 0:04:15]} 22. Red1 {[%emt 0:00:42]} Nb2 {[%emt 0:02:12]} 23. Rdb1 {[%emt 0:00:45]} Nc4 {[%emt 0:02:00]} 24. d5 {[%emt 0:00:42]} exd5 {[%emt 0:00:48]} 25. Bxd5 {[%emt 0:00:15]} Ndxe5 {[%emt 0:06:02]} 26. fxe5 {[%emt 0:04:22]} Rxd5 {[%emt 0:00:42]} 27. Bf4 {[%emt 0:01:55]} Rxb1 {[%emt 0:09:03]} 28. Rxb1 {[%emt 0:00:07]} Qa5 {[%emt 0:06:54]} 29. Qxa5 {[%emt 0:04:53]} Nxa5 {[%emt 0:00:08]} 30. Nge3 {[%emt 0:00:10]} Rd7 {[%emt 0:03:16]} 31. Nf5 {[%emt 0:00:46]} Bd8 {[%emt 0:02:00]} 32. Nd6 {[%emt 0:02:11]} Nc6 {[%emt 0:01:16]} 33. h4 {[%emt 0:04:07]} h6 {[%emt 0:01:36]} 34. Ne4 {[%emt 0:02:23]} Bb6 {[%emt 0:01:00]} 35. Rc1 {[%emt 0:00:38]} c4+ {[%emt 0:03:49]} 36. Kh2 {[%emt 0:01:03]} Nb4 {[%emt 0:02:12]} 37. Nfd2 {[%emt 0:09:28]} Nd3 {[%emt 0:01:44]} 38. Rc2 {[%emt 0:00:16]} Nxf4 {[%emt 0:04:21]} 39. gxf4 {[%emt 0:00:05]} Rd4 {[%emt 0:01:40]} 40. Nd6 {[%emt 0:02:59]} c3 {[%emt 0:01:39]} 41. Nb3 {[%emt 0:02:21]} Rd3 {[%emt 0:00:25]} 42. Kg2 {[%emt 0:00:21]} Re3 {[%emt 0:00:47]} 43. Nc1 {[%emt 0:00:37]} g6 {[%emt 0:01:13]} 44. a4 {[%emt 0:00:57]} Bd3 {[%emt 0:00:43]} 45. Nxd3 {[%emt 0:00:21]} Rxd3 {[%emt 0:00:06]} 46. Kf1 {[%emt 0:00:34]} Ba5 {[%emt 0:00:41]} 47. Nc4 {[%emt 0:00:12]} Bb4 {[%emt 0:00:18]} 48. Ke2 {[%emt 0:00:22]} Rd4 {[%emt 0:00:14]} 49. Ne3 {[%emt 0:00:35]} Rxf4 {[%emt 0:00:26]} 50. Nd5 {[%emt 0:00:10]} Rxh4 {[%emt 0:00:24]} 51. Kd3 {[%emt 0:00:06]} a5 {[%emt 0:00:25]} 52. Re2 {[%emt 0:01:05]} Rh1 {[%emt 0:01:01]} 53. Nxb4 {[%emt 0:00:26]} axb4 {[%emt 0:00:06]} 54. Kc4 {[%emt 0:00:03]} Rb1 {[%emt 0:00:23]} 55. a5 {[%emt 0:00:06]} Rb2 {[%emt 0:00:28]} 56. Re1 {[%emt 0:00:06]} c2 {[%emt 0:00:31]} 57. Rc1 {[%emt 0:00:08]} b3 {[%emt 0:00:26]} 58. a6 {[%emt 0:00:17]} Ra2 {[%emt 0:00:16]} 59. Kxb3 {[%emt 0:00:03]} Rxa6 {[%emt 0:00:05]} 60. Rxc2 {[%emt 0:00:03]} Rb6+ {[%emt 0:00:07]} 61. Ka4 {[%emt 0:00:06]} h5 {[%emt 0:00:14]} 62. Ka5 {[%emt 0:00:26]} Rb1 {[%emt 0:00:13]} 0-1

[Event "EYCC Girls U16 2021"]
[Site "Tornelo"]
[Date "2021.10.15"]
[Round "4.4"]
[White "Allahverdiyeva, Ayan"]
[Black "Shpakivskaya, Alina"]
[Result "1-0"]
[ECO "B12"]
[WhiteElo "2051"]
[BlackElo "1875"]
[Annotator "ChessBase"]
[PlyCount "67"]
[EventDate "2021.10.15"]
[EventType "swiss"]
[EventCountry "NET"]
[SourceTitle "playchess.com"]
[Source "ChessBase"]
[SourceQuality "1"]
[TimeControl "5400+30"]

1. e4 {[%emt 0:00:30]} c6 {[%emt 0:00:43]} 2. d4 {[%emt 0:00:08]} d5 {[%emt 0:00:11]} 3. e5 {[%emt 0:00:04]} g6 {[%emt 0:00:12]} 4. f4 {[%emt 0:03:39]} h5 {[%emt 0:00:13]} 5. Be3 {[%emt 0:00:51]} Nh6 {[%emt 0:01:38]} 6. Nf3 {[%emt 0:00:07]} Bg4 {[%emt 0:00:12]} 7. Be2 {[%emt 0:08:37]} e6 {[%emt 0:00:28]} 8. Bf2 {[%emt 0:07:08]} Nf5 {[%emt 0:01:05]} 9. Qd3 {[%emt 0:06:25]} Bxf3 {[%emt 0:03:11]} 10. Qxf3 {[%emt 0:01:44]} Nd7 {[%emt 0:02:40]} 11. Nd2 {[%emt 0:02:06]} h4 {[%emt 0:03:39]} 12. O-O-O {[%emt 0:00:24]} Qb6 {[%emt 0:01:18]} 13. Nb1 {[%emt 0:02:37]} a5 {[%emt 0:02:28]} 14. g4 {[%emt 0:07:17]} Ng7 {[%emt 0:05:02]} 15. Bd3 {[%emt 0:09:20]} a4 {[%emt 0:02:37]} 16. f5 {[%emt 0:09:18]} gxf5 {[%emt 0:01:59]} 17. gxf5 {[%emt 0:00:03]} Nxf5 {[%emt 0:01:12]} 18. Bxf5 {[%emt 0:00:08]} exf5 {[%emt 0:00:07]} 19. Be3 {[%emt 0:02:58]} a3 {[%emt 0:04:02]} 20. b3 {[%emt 0:00:16]} Bh6 {[%emt 0:01:01]} 21. e6 {[%emt 0:02:18]} Ne5 {[%emt 0:09:03]} 22. exf7+ {[%emt 0:12:24]} Kd8 {[%emt 0:05:24]} 23. Qh3 {[%emt 0:00:38]} Nxf7 {[%emt 0:01:54]} 24. Bxh6 {[%emt 0:01:30]} Nxh6 {[%emt 0:00:30]} 25. Qxh4+ {[%emt 0:00:30]} Kd7 {[%emt 0:01:06]} 26. Rhg1 {[%emt 0:04:59]} Qd8 {[%emt 0:03:54]} 27. Rg7+ {[%emt 0:00:05]} Kc8 {[%emt 0:01:02]} 28. Qf4 {[%emt 0:00:05]} Ng8 {[%emt 0:05:46]} 29. Re1 {[%emt 0:03:53]} Rh4 {[%emt 0:01:18]} 30. Qxh4 {[%emt 0:00:57]} Qxh4 {[%emt 0:00:36]} 31. Re8+ {[%emt 0:00:17]} Qd8 {[%emt 0:00:07]} 32. Rxd8+ {[%emt 0:00:01]} Kxd8 {[%emt 0:00:05]} 33. Rxg8+ {[%emt 0:00:01]} Ke7 {[%emt 0:00:04]} 34. Rxa8 {[%emt 0:00:01]} 1-0

[Event "EYCC Girls U16 2021"]
[Site "Tornelo"]
[Date "2021.10.15"]
[Round "4.5"]
[White "Shuqja, Klean"]
[Black "Zvereva, Margarita"]
[Result "1/2-1/2"]
[ECO "A06"]
[WhiteElo "1877"]
[BlackElo "2013"]
[Annotator "NA"]
[PlyCount "81"]
[EventDate "2021.10.15"]
[EventType "swiss"]
[EventCountry "NET"]
[SourceTitle "playchess.com"]
[Source "ChessBase"]
[SourceQuality "1"]
[TimeControl "5400+30"]

1. b3 {[%emt 0:00:30]} d5 {[%emt 0:00:40]} 2. Bb2 {[%emt 0:00:03]} Nf6 {[%emt 0:00:04]} 3. e3 {[%emt 0:00:40]} Bf5 {[%emt 0:00:07]} 4. Nf3 {[%emt 0:00:49]} h6 {[%emt 0:02:28]} 5. Ne5 {[%emt 0:02:01]} e6 {[%emt 0:02:13]} 6. Be2 {[%emt 0:04:57]} Bd6 {[%emt 0:03:57]} 7. O-O {[%emt 0:05:15]} O-O {[%emt 0:00:45]} 8. d3 {[%emt 0:04:24]} c5 {[%emt 0:01:03]} 9. Nd2 {[%emt 0:01:45]} Bh7 {[%emt 0:04:54]} 10. f4 {[%emt 0:08:01]} Qc7 {[%emt 0:03:50]} 11. Ndf3 {[%emt 0:02:23]} Nbd7 {[%emt 0:02:15]} 12. Qe1 {[%emt 0:03:48]} Bxe5 {[%emt 0:11:43]} 13. Bxe5 {[%emt 0:09:11]} Nxe5 {[%emt 0:00:28]} 14. Nxe5 {[%emt 0:01:04]} b5 {[%emt 0:07:07]} 15. Bf3 {[%emt 0:04:11]} Rac8 {[%emt 0:02:25]} 16. a4 {[%emt 0:10:25]} b4 {[%emt 0:04:22]} 17. Rc1 {[%emt 0:03:47]} Nd7 {[%emt 0:03:55]} 18. Ng4 {[%emt 0:05:40]} a5 {[%emt 0:07:38]} 19. Qg3 {[%emt 0:01:51]} Kh8 {[%emt 0:00:31]} 20. Be2 {[%emt 0:01:18]} f6 {[%emt 0:07:56]} 21. Qf3 {[%emt 0:06:02]} Qc6 {[%emt 0:08:14]} 22. Nf2 {[%emt 0:03:34]} Nb6 {[%emt 0:02:08]} 23. c4 {[%emt 0:04:21]} bxc3 {[%emt 0:05:25]} 24. Rxc3 {[%emt 0:00:17]} e5 {[%emt 0:00:36]} 25. Rfc1 $15 {[%emt 0:00:48] [#]} Qd6 $1 {[%emt 0:01:26]} 26. f5 {[%emt 0:01:44]} Qe7 {[%emt 0:03:31]} 27. R3c2 {[%emt 0:06:40]} Bg8 {[%emt 0:02:01]} 28. d4 {[%emt 0:04:47]} cxd4 {[%emt 0:03:08]} 29. exd4 {[%emt 0:01:03]} exd4 {[%emt 0:00:43]} 30. Qd3 {[%emt 0:01:34]} Qe3 {[%emt 0:03:38]} 31. Qb5 {[%emt 0:00:59]} Qxc1+ {[%emt 0:04:28]} 32. Rxc1 {[%emt 0:00:07]} Rxc1+ {[%emt 0:00:03]} 33. Bf1 {[%emt 0:00:36]} Nc8 {[%emt 0:00:41]} 34. Nd3 {[%emt 0:00:19]} Rd1 {[%emt 0:01:32]} 35. Nf4 {[%emt 0:00:10]} Bf7 {[%emt 0:01:00]} 36. Qe2 {[%emt 0:00:30]} Rc1 {[%emt 0:00:47]} 37. Qd2 {[%emt 0:00:11]} Rb1 {[%emt 0:00:37]} 38. Qc2 {[%emt 0:00:15]} Re1 {[%emt 0:00:10]} 39. Qd2 {[%emt 0:00:08]} Rb1 {[%emt 0:00:15]} 40. Qc2 {[%emt 0:00:03]} Re1 {[%emt 0:00:15]} 41. Qd2 {[%emt 0:00:12]} 1/2-1/2

[Event "EYCC Girls U16 2021"]
[Site "Tornelo"]
[Date "2021.10.15"]
[Round "4.6"]
[White "Mihelic, Vesna"]
[Black "Tokmakova, Ulyana"]
[Result "1-0"]
[ECO "B51"]
[WhiteElo "1882"]
[BlackElo "1977"]
[Annotator "ChessBase"]
[PlyCount "55"]
[EventDate "2021.10.15"]
[EventType "swiss"]
[EventCountry "NET"]
[SourceTitle "playchess.com"]
[Source "ChessBase"]
[SourceQuality "1"]
[TimeControl "5400+30"]

1. e4 {[%emt 0:00:30]} c5 {[%emt 0:00:35]} 2. Nf3 {[%emt 0:00:08]} d6 {[%emt 0:00:04]} 3. Bb5+ {[%emt 0:00:12]} Nd7 {[%emt 0:00:04]} 4. O-O {[%emt 0:00:20]} Ngf6 {[%emt 0:04:25]} 5. Re1 {[%emt 0:00:32]} e6 {[%emt 0:03:20]} 6. c3 {[%emt 0:01:31]} Be7 {[%emt 0:03:12]} 7. d4 {[%emt 0:01:02]} O-O {[%emt 0:01:35]} 8. h3 {[%emt 0:01:37]} a6 {[%emt 0:04:25]} 9. Bxd7 {[%emt 0:01:11]} Nxd7 {[%emt 0:00:49]} 10. Bf4 {[%emt 0:02:04]} b6 {[%emt 0:02:19]} 11. Nbd2 {[%emt 0:05:02]} Bb7 {[%emt 0:03:26]} 12. e5 {[%emt 0:08:14]} dxe5 {[%emt 0:05:01]} 13. dxe5 {[%emt 0:01:27]} b5 {[%emt 0:03:02]} 14. Ne4 {[%emt 0:08:16]} Bxe4 {[%emt 0:02:04]} 15. Rxe4 {[%emt 0:00:23]} Nb6 {[%emt 0:03:13]} 16. Qc2 {[%emt 0:02:28]} Qc7 {[%emt 0:04:29]} 17. Bg5 {[%emt 0:04:53]} Rfd8 {[%emt 0:06:53]} 18. Rg4 {[%emt 0:13:07]} Bxg5 {[%emt 0:04:15]} 19. Nxg5 {[%emt 0:01:06]} g6 {[%emt 0:00:26]} 20. Qe4 {[%emt 0:04:22]} Rd5 {[%emt 0:08:26]} 21. Qf4 {[%emt 0:12:44]} Ra7 {[%emt 0:11:39]} 22. Nxh7 {[%emt 0:07:46]} Rxe5 {[%emt 0:05:33]} 23. Qh6 {[%emt 0:11:49]} Nd5 {[%emt 0:04:42]} 24. Rd1 {[%emt 0:02:51]} Qe7 {[%emt 0:02:29]} 25. Rh4 {[%emt 0:00:49]} c4 {[%emt 0:04:05]} 26. g4 {[%emt 0:06:03]} Rh5 {[%emt 0:06:11]} 27. Rxh5 {[%emt 0:00:33]} gxh5 {[%emt 0:00:05]} 28. Rxd5 {[%emt 0:00:28]} 1-0

[Event "EYCC Girls U16 2021"]
[Site "Tornelo"]
[Date "2021.10.15"]
[Round "4.7"]
[White "Doll, Rebecca"]
[Black "Kara, Gulce Nehir"]
[Result "0-1"]
[ECO "B33"]
[WhiteElo "1970"]
[BlackElo "1766"]
[Annotator "ChessBase"]
[PlyCount "94"]
[EventDate "2021.10.15"]
[EventType "swiss"]
[EventCountry "NET"]
[SourceTitle "playchess.com"]
[Source "ChessBase"]
[SourceQuality "1"]
[TimeControl "5400+30"]

1. e4 {[%emt 0:00:30]} c5 {[%emt 0:00:36]} 2. Nf3 {[%emt 0:00:26]} Nc6 {[%emt 0:00:05]} 3. d4 {[%emt 0:00:23]} cxd4 {[%emt 0:00:04]} 4. Nxd4 {[%emt 0:00:11]} Qb6 {[%emt 0:00:05]} 5. Nb3 {[%emt 0:01:49]} Nf6 {[%emt 0:00:08]} 6. Nc3 {[%emt 0:02:00]} e6 {[%emt 0:00:14]} 7. a3 {[%emt 0:04:32]} a6 {[%emt 0:03:21]} 8. Bf4 {[%emt 0:01:55]} Ne7 {[%emt 0:09:10]} 9. Bg5 {[%emt 0:15:39]} Ng6 {[%emt 0:14:14]} 10. Bxf6 {[%emt 0:04:24]} gxf6 {[%emt 0:00:06]} 11. Qf3 {[%emt 0:00:18]} Be7 {[%emt 0:06:05]} 12. Be2 {[%emt 0:02:25]} d6 {[%emt 0:03:49]} 13. Qg3 {[%emt 0:08:26]} Bd7 {[%emt 0:04:42]} 14. f4 {[%emt 0:02:35]} O-O-O {[%emt 0:09:53]} 15. O-O-O {[%emt 0:04:12]} Rhg8 {[%emt 0:01:23]} 16. Rhf1 {[%emt 0:07:14]} f5 {[%emt 0:05:39]} 17. Qf2 {[%emt 0:10:09]} Qxf2 {[%emt 0:06:34]} 18. Rxf2 {[%emt 0:00:04]} fxe4 {[%emt 0:01:18]} 19. Nxe4 {[%emt 0:00:18]} Bc6 {[%emt 0:00:27]} 20. Nc3 {[%emt 0:05:27]} Nxf4 {[%emt 0:03:35]} 21. g3 {[%emt 0:05:30]} Nxe2+ {[%emt 0:02:21]} 22. Nxe2 {[%emt 0:00:25]} Bg5+ {[%emt 0:01:17]} 23. Kb1 {[%emt 0:00:36]} Rgf8 {[%emt 0:05:30]} 24. Nbd4 {[%emt 0:02:06]} Bd7 {[%emt 0:03:52]} 25. Rdf1 {[%emt 0:00:30]} f5 {[%emt 0:01:42]} 26. Rf3 {[%emt 0:01:28]} Rde8 {[%emt 0:01:23]} 27. g4 {[%emt 0:05:38]} f4 {[%emt 0:00:38]} 28. h4 {[%emt 0:02:12]} Bxh4 {[%emt 0:00:15]} 29. Nxf4 {[%emt 0:00:16]} e5 {[%emt 0:03:23]} 30. Nd5 {[%emt 0:00:21]} Rxf3 {[%emt 0:00:23]} 31. Nb6+ {[%emt 0:00:34]} Kc7 {[%emt 0:01:15]} 32. Nd5+ {[%emt 0:00:05]} Kb8 {[%emt 0:00:22]} 33. Nxf3 {[%emt 0:00:08]} Bd8 {[%emt 0:02:58]} 34. Ne3 {[%emt 0:01:17]} Rf8 {[%emt 0:01:11]} 35. Ka2 {[%emt 0:01:20]} Be6+ {[%emt 0:00:16]} 36. b3 {[%emt 0:00:07]} Bb6 {[%emt 0:01:09]} 37. Nh2 {[%emt 0:00:25]} Rxf1 {[%emt 0:00:56]} 38. Nexf1 {[%emt 0:00:11]} e4 {[%emt 0:00:26]} 39. g5 {[%emt 0:01:33]} Bg1 {[%emt 0:00:35]} 40. Kb1 {[%emt 0:00:42]} e3 {[%emt 0:01:45]} 41. Nf3 {[%emt 0:00:11]} Bf2 {[%emt 0:00:05]} 42. Kc1 {[%emt 0:02:57]} e2 {[%emt 0:00:12]} 43. N1d2 {[%emt 0:00:24]} Bg4 {[%emt 0:00:59]} 44. c3 {[%emt 0:00:52]} Bxf3 {[%emt 0:03:41]} 45. Nxf3 {[%emt 0:00:12]} e1=Q+ {[%emt 0:00:07]} 46. Nxe1 {[%emt 0:00:04]} Bxe1 {[%emt 0:00:04]} 47. Kc2 {[%emt 0:00:04]} Bh4 {[%emt 0:00:04]} 0-1

[Event "EYCC Girls U16 2021"]
[Site "Tornelo"]
[Date "2021.10.15"]
[Round "4.8"]
[White "Carevic, Milica"]
[Black "Dietz, Kristin"]
[Result "0-1"]
[ECO "E00"]
[WhiteElo "1675"]
[BlackElo "1924"]
[Annotator "ChessBase"]
[PlyCount "118"]
[EventDate "2021.10.15"]
[EventType "swiss"]
[EventCountry "NET"]
[SourceTitle "playchess.com"]
[Source "ChessBase"]
[SourceQuality "1"]
[TimeControl "5400+30"]

1. d4 {[%emt 0:00:30]} Nf6 {[%emt 0:00:37]} 2. c4 {[%emt 0:00:09]} e6 {[%emt 0:00:07]} 3. g3 {[%emt 0:01:20]} Bb4+ {[%emt 0:00:42]} 4. Bd2 {[%emt 0:01:14]} c5 {[%emt 0:00:10]} 5. Bxb4 {[%emt 0:07:09]} cxb4 {[%emt 0:00:35]} 6. Bg2 {[%emt 0:00:32]} d6 {[%emt 0:00:51]} 7. Qa4+ {[%emt 0:06:09]} Bd7 {[%emt 0:02:32]} 8. Qxb4 {[%emt 0:03:35]} Bc6 {[%emt 0:00:46]} 9. Nf3 {[%emt 0:05:05]} O-O {[%emt 0:01:17]} 10. Nbd2 {[%emt 0:06:01]} a5 {[%emt 0:03:48]} 11. Qc3 {[%emt 0:02:22]} Nbd7 {[%emt 0:01:10]} 12. O-O {[%emt 0:02:10]} b5 {[%emt 0:08:04]} 13. b3 {[%emt 0:07:59]} Qe7 {[%emt 0:04:24]} 14. Rfe1 {[%emt 0:09:00]} bxc4 {[%emt 0:02:07]} 15. bxc4 {[%emt 0:00:49]} Ne4 {[%emt 0:03:29]} 16. Nxe4 {[%emt 0:04:01]} Bxe4 {[%emt 0:00:07]} 17. Nd2 {[%emt 0:02:20]} Bxg2 {[%emt 0:00:57]} 18. Kxg2 {[%emt 0:00:04]} e5 {[%emt 0:00:25]} 19. e3 {[%emt 0:06:05]} f5 {[%emt 0:02:21]} 20. Rab1 {[%emt 0:02:18]} Qf7 {[%emt 0:03:02]} 21. Rb5 {[%emt 0:04:24]} f4 {[%emt 0:01:17]} 22. exf4 {[%emt 0:00:08]} exf4 {[%emt 0:00:12]} 23. Rf1 {[%emt 0:01:29]} Rae8 {[%emt 0:07:28]} 24. Qf3 {[%emt 0:05:28]} Qg6 {[%emt 0:02:15]} 25. Qd5+ {[%emt 0:01:25]} Kh8 {[%emt 0:00:11]} 26. Nf3 {[%emt 0:04:10]} Rf6 {[%emt 0:03:20]} 27. Rb7 {[%emt 0:02:20]} fxg3 {[%emt 0:02:35]} 28. hxg3 {[%emt 0:00:15]} Nf8 {[%emt 0:00:50]} 29. Qg5 {[%emt 0:05:19]} Ne6 {[%emt 0:00:35]} 30. Qxg6 {[%emt 0:00:12]} Rxg6 {[%emt 0:00:09]} 31. Ra7 {[%emt 0:00:54]} Kg8 {[%emt 0:07:22]} 32. Rxa5 {[%emt 0:02:57]} Rf8 {[%emt 0:00:58]} 33. Nh4 {[%emt 0:04:20]} Rg4 {[%emt 0:02:03]} 34. d5 {[%emt 0:00:30]} Nc5 {[%emt 0:02:15]} 35. Rc1 {[%emt 0:01:07]} Nd3 {[%emt 0:00:18]} 36. Rf1 {[%emt 0:00:17]} Rxc4 {[%emt 0:00:15]} 37. Ra6 {[%emt 0:00:36]} Rc2 {[%emt 0:03:08]} 38. Nf3 {[%emt 0:00:24]} g5 {[%emt 0:00:35]} 39. Nxg5 {[%emt 0:01:02]} Nxf2 {[%emt 0:00:20]} 40. Nf3 {[%emt 0:00:52]} Ne4+ {[%emt 0:04:24]} 41. Kh3 {[%emt 0:00:22]} Rc3 {[%emt 0:00:35]} 42. Kg2 {[%emt 0:00:24]} h5 {[%emt 0:01:42]} 43. Rc6 {[%emt 0:00:42]} Rd3 {[%emt 0:00:57]} 44. Rc4 {[%emt 0:00:59]} Rdxf3 {[%emt 0:01:32]} 45. Rxf3 {[%emt 0:00:18]} Rxf3 {[%emt 0:00:04]} 46. Kxf3 {[%emt 0:00:03]} Nd2+ {[%emt 0:00:07]} 47. Ke3 {[%emt 0:00:15]} Nxc4+ {[%emt 0:00:04]} 48. Kd4 {[%emt 0:00:02]} Nb6 {[%emt 0:00:18]} 49. a3 {[%emt 0:00:04]} Kf7 {[%emt 0:00:07]} 50. Ke4 {[%emt 0:00:02]} Kf6 {[%emt 0:00:11]} 51. Kd4 {[%emt 0:00:06]} Kf5 {[%emt 0:00:11]} 52. Kc3 {[%emt 0:00:03]} Nxd5+ {[%emt 0:00:07]} 53. Kc4 {[%emt 0:00:03]} Ke5 {[%emt 0:00:18]} 54. Kb5 {[%emt 0:00:02]} Nc3+ {[%emt 0:00:41]} 55. Kc4 {[%emt 0:00:25]} Ne4 {[%emt 0:00:14]} 56. a4 {[%emt 0:00:14]} d5+ {[%emt 0:00:08]} 57. Kb5 {[%emt 0:00:07]} Nc3+ {[%emt 0:01:38]} 58. Kb4 {[%emt 0:00:15]} Nxa4 {[%emt 0:00:32]} 59. Kxa4 {[%emt 0:00:03]} Kd4 {[%emt 0:00:06]} 0-1

[Event "EYCC Girls U16 2021"]
[Site "Tornelo"]
[Date "2021.10.15"]
[Round "4.9"]
[White "Jovanovic, Anja"]
[Black "Perez Garcia, Jimena"]
[Result "1/2-1/2"]
[ECO "B22"]
[WhiteElo "1781"]
[BlackElo "1914"]
[Annotator "NA"]
[PlyCount "136"]
[EventDate "2021.10.15"]
[EventType "swiss"]
[EventCountry "NET"]
[SourceTitle "playchess.com"]
[Source "ChessBase"]
[SourceQuality "1"]
[TimeControl "5400+30"]

1. e4 {[%emt 0:00:30]} c5 {[%emt 0:00:40]} 2. c3 {[%emt 0:00:15]} d5 {[%emt 0:00:11]} 3. exd5 {[%emt 0:00:12]} Qxd5 {[%emt 0:00:12]} 4. d4 {[%emt 0:00:09]} Nf6 {[%emt 0:00:15]} 5. Nf3 {[%emt 0:00:45]} e6 {[%emt 0:00:17]} 6. Bd3 {[%emt 0:02:00]} Nc6 {[%emt 0:02:31]} 7. O-O {[%emt 0:01:00]} Be7 {[%emt 0:01:28]} 8. a3 {[%emt 0:06:38]} cxd4 {[%emt 0:05:49]} 9. cxd4 {[%emt 0:00:43]} O-O {[%emt 0:00:22]} 10. Bf4 {[%emt 0:02:33]} Rd8 {[%emt 0:07:10]} 11. Nc3 {[%emt 0:02:24]} Qd7 {[%emt 0:03:06]} 12. Bb5 {[%emt 0:02:52]} a6 {[%emt 0:11:27]} 13. Qa4 {[%emt 0:05:18]} Bd6 {[%emt 0:14:50]} 14. Bg5 {[%emt 0:02:27]} Rb8 {[%emt 0:04:21]} 15. Bxc6 {[%emt 0:04:19]} bxc6 {[%emt 0:04:57]} 16. b4 {[%emt 0:18:48]} Qc7 {[%emt 0:06:56]} 17. Bxf6 {[%emt 0:08:14]} gxf6 {[%emt 0:00:10]} 18. Ne4 {[%emt 0:01:47]} Be7 {[%emt 0:01:38]} 19. Rac1 {[%emt 0:04:47]} Qf4 {[%emt 0:03:50]} 20. Nc5 {[%emt 0:09:19]} Kh8 {[%emt 0:04:23]} 21. Rc3 {[%emt 0:10:19]} Rg8 {[%emt 0:03:38]} 22. Qc2 {[%emt 0:01:30]} e5 {[%emt 0:06:47]} 23. Qe4 {[%emt 0:02:50]} Qxe4 {[%emt 0:02:54]} 24. Nxe4 {[%emt 0:00:05]} f5 {[%emt 0:01:52]} 25. Ng3 {[%emt 0:03:49]} f4 {[%emt 0:02:25]} 26. Nxe5 {[%emt 0:03:51]} fxg3 {[%emt 0:01:08]} 27. Nxf7+ {[%emt 0:00:03]} Kg7 {[%emt 0:00:14]} 28. fxg3 {[%emt 0:00:03]} Bf6 {[%emt 0:06:35]} 29. Ne5 {[%emt 0:00:05]} a5 {[%emt 0:01:42]} 30. Rxc6 {[%emt 0:02:03]} Bxe5 {[%emt 0:00:56]} 31. dxe5 {[%emt 0:00:03]} axb4 {[%emt 0:00:51]} 32. axb4 {[%emt 0:00:58]} Rxb4 {[%emt 0:00:19]} 33. Rc7+ {[%emt 0:00:06]} Kg6 {[%emt 0:00:40]} 34. Rf6+ {[%emt 0:00:55]} Kg5 {[%emt 0:00:07]} 35. Rxh7 {[%emt 0:00:10]} Bf5 {[%emt 0:01:14]} 36. Rhf7 {[%emt 0:01:59]} Rb1+ {[%emt 0:00:17]} 37. Kf2 {[%emt 0:00:03]} Rb2+ {[%emt 0:00:15]} 38. Kg1 {[%emt 0:00:57]} Rb1+ {[%emt 0:00:06]} 39. Kf2 {[%emt 0:00:01]} Rb2+ {[%emt 0:00:04]} 40. Ke3 {[%emt 0:00:45]} Rb3+ {[%emt 0:01:40]} 41. Kd4 {[%emt 0:02:10]} Bg6 {[%emt 0:00:59]} 42. Rf8 {[%emt 0:02:01]} Rg7 {[%emt 0:00:14]} 43. Rf4 {[%emt 0:01:19]} Ra7 {[%emt 0:01:08]} 44. Rh8 {[%emt 0:00:46]} Ra4+ {[%emt 0:00:43]} 45. Kc5 {[%emt 0:00:02]} Rxf4 {[%emt 0:00:49]} 46. gxf4+ {[%emt 0:00:03]} Kxf4 {[%emt 0:00:04]} 47. e6 {[%emt 0:00:02]} Re3 {[%emt 0:00:16]} 48. Kd6 {[%emt 0:00:07]} Re2 {[%emt 0:00:34]} 49. g3+ {[%emt 0:00:15]} Kf5 {[%emt 0:00:51]} 50. Rf8+ {[%emt 0:00:10]} Kg5 {[%emt 0:00:28]} 51. h4+ {[%emt 0:00:16]} Kh6 {[%emt 0:00:08]} 52. g4 {[%emt 0:01:15]} Kg7 {[%emt 0:00:22]} 53. Rf4 {[%emt 0:00:33]} Ra2 {[%emt 0:00:53]} 54. Rd4 {[%emt 0:01:55]} Re2 {[%emt 0:00:50]} 55. h5 {[%emt 0:00:40]} Be8 {[%emt 0:00:19]} 56. Rb4 {[%emt 0:00:19]} Kf6 {[%emt 0:00:39]} 57. Rf4+ {[%emt 0:00:25]} Kg5 {[%emt 0:00:48]} 58. Rf8 {[%emt 0:00:16]} Ba4 {[%emt 0:00:09]} 59. Rg8+ {[%emt 0:00:44]} Kh6 {[%emt 0:00:24]} 60. Ke7 {[%emt 0:00:54]} Bb3 {[%emt 0:00:35]} 61. Rg6+ {[%emt 0:00:10]} Kh7 {[%emt 0:00:06]} 62. Kf7 {[%emt 0:00:40]} Re5 {[%emt 0:00:50]} 63. g5 {[%emt 0:00:42]} Bxe6+ {[%emt 0:00:44]} 64. Rxe6 {[%emt 0:00:36]} Rxg5 {[%emt 0:00:08]} 65. h6 {[%emt 0:00:28]} Rh5 {[%emt 0:00:13]} 66. Rg6 {[%emt 0:00:26]} Rf5+ {[%emt 0:00:15]} 67. Rf6 {[%emt 0:00:07]} Rxf6+ {[%emt 0:00:06]} 68. Kxf6 {[%emt 0:00:02]} Kxh6 {[%emt 0:00:04]} 1/2-1/2